Cogmind - Beta 9.6 @@@ ROGUE MODE // 2020.07.30 @ 11:29:25 // Winter2019/RPGLIKE Player: FontPeg Result: Destroyed by Y-45 Defender with Beam Rifle Performance ------------- Evolutions (2) 1000 Regions Visited (3) 600 Robots Destroyed (29) 145 Value Destroyed (742) 742 Prototype IDs (2) 40 Alien Tech Used (0) 0 Bonus (0) 0 TOTAL SCORE: 2527 Bonus ------- None Cogmind --------- Core Integrity 0/1000 Matter 350/350 Energy 315/315 System Corruption 0% Temperature Cool (9) Movement Flying (117) Ox1 Location -8/Materials Parts ------- > --- POWER (1) -------- Improved Ion Engine > --- PROPULSION (2) --- Cesium-ion Thruster Cesium-ion Thruster > --- UTILITY (3) ------ Improved Sensor Array Improved Signal Interpreter Targeting Computer > --- WEAPON (2) ------- EM Pulse Cannon EM Pulse Cannon > --- INVENTORY (3) ---- Cesium-ion Thruster EM Pulse Cannon Heavy Particle Cannon Peak State ------------ > --- POWER ------------ Improved Ion Engine > --- PROPULSION ------- Cesium-ion Thruster Cesium-ion Thruster > --- UTILITY ---------- Improved Sensor Array Improved Signal Interpreter Targeting Computer > --- WEAPON ----------- Improved Medium Laser Improved Medium Laser > --- INVENTORY -------- Compact Wheel Improved Medium Laser Heavy Particle Cannon [Rating: 19] Favorites ----------- Power Ion Engine Engine Ion Engine Propulsion Flight Unit Wheel Compact Wheel Flight Unit Flight Unit Utility Targeting Computer Device ECM Suite Processor Targeting Computer Weapon Assault Rifle Energy Gun Improved Medium Laser Energy Cannon EM Pulse Cannon Ballistic Gun Assault Rifle Build | -11 -10 -9 -8 ------- Run | Scr Mat Mat Mat Slots Evolved 4 | 3 . 1 . Power . | . . . . Propulsion 1 | 1 . . . Utility 2 | 1 . 1 . Weapon 1 | 1 . . . Parts Attached 25 | 4 5 7 9 Power 5 | 1 . 1 3 Engine 5 | 1 . 1 3 Core . | . . . . Reactor . | . . . . Propulsion 7 | 2 2 1 2 Treads . | . . . . Leg . | . . . . Wheel 2 | 2 . . . Hover . | . . . . Flight 5 | . 2 1 2 Utility 5 | . 2 2 1 Device 3 | . 1 1 1 Storage . | . . . . Processor 2 | . 1 1 . Hackware . | . . . . Protection . | . . . . Artifact . | . . . . Weapon 8 | 1 1 3 3 Energy Gun 5 | . 1 3 1 Energy Cannon 2 | . . . 2 Ballistic Gun 1 | 1 . . . Ballistic Cannon . | . . . . Launcher . | . . . . Special Weapon . | . . . . Impact Weapon . | . . . . Slashing Weapon . | . . . . Piercing Weapon . | . . . . Special Melee Weapon . | . . . . Unidentified Prototypes 1 | . . 1 . Parts Lost . | . . . . Power . | . . . . Propulsion . | . . . . Utility . | . . . . Weapon . | . . . . Highest Loss Streak . | . . . . Average Slot Usage (%) 97 | . 94 98 100 Engine 12 | . 14 12 12 Wheel 7 | . 26 . . Flight 18 | . 1 25 25 Device 15 | . 13 22 12 Processor 16 | . 10 12 25 Energy Gun 12 | . 12 13 12 Energy Cannon 4 | . . . 12 Ballistic Gun 7 | . 14 10 . Naked Turns . | . . . . Heaviest Build 20 | 7 9 13 20 Greatest Support 32 | 32 32 13 17 Greatest Overweight (x) 1 | . 1 1 1 Average Overweight (x) . | . . . . Largest Inventory Capacity 3 | 3 3 3 3 Average Capacity 3 | 3 3 3 3 Most Carried 3 | 3 3 3 3 Average Carried 2 | 1 2 2 2 Final Capacity 3 | 3 3 3 3 Final Carried 3 | 3 3 3 3 Class Distribution -------------------- 100% | Mutant Dominant Class ---------------- Mutant | -10/Materials Mutant | -9/Materials Mutant | -8/Materials Resources | -11 -10 -9 -8 ----------- Run | Scr Mat Mat Mat Matter Collected 698 | 240 103 205 150 Remotely . | . . . . Salvage Created 874 | . 221 373 280 Parts 64 | . 23 31 10 Haulers Intercepted . | . . . . Recyclers Shooed 1 | . 1 . . Parts Field Recycled . | . . . . Retrieved Matter . | . . . . Parts Self-Destructed . | . . . . Prevented . | . . . . Kills | -11 -10 -9 -8 ------- Run | Scr Mat Mat Mat Combat Hostiles Destroyed 26 | . 11 11 4 Guns 23 | . 11 11 1 AOE 2 | . . . 2 Classes Destroyed 4 | . 2 2 . Watcher 3 | . . 1 2 Swarmer 13 | . 8 5 . Grunt 8 | . 3 2 3 Sentry 5 | . . 4 1 Best Kill Streak 8 | . 8 5 2 Combat Bots Only 8 | . 8 5 2 Max Kills in Single Turn 2 | . 2 1 2 Gunslinging 1 | . 1 . . Exploded 2 | . . . 2 Melee . | . . . . Uniques/NPCs Destroyed . | . . . . Combat | -11 -10 -9 -8 -------- Run | Scr Mat Mat Mat Damage Taken 2061 | . 388 597 1076 Core 1719 | . 318 495 906 Absorbed by Shields . | . . . . Redirected to Core 1132 | . 220 339 573 Core Remaining (%) 82 | 100 87 61 . Volleys Fired 80 | . 25 41 14 Largest 2 | . 2 2 2 Hottest 126 | . 60 70 126 Shots Fired 159 | . 49 82 28 Gun 143 | . 49 82 12 Cannon 16 | . . . 16 Launcher . | . . . . Special . | . . . . Kinetic 66 | . 25 41 . Thermal 77 | . 24 41 12 Explosive . | . . . . Electromagnetic 16 | . . . 16 Robot Hit Streak 16 | . 7 16 12 Robot Miss Streak 5 | . 5 3 1 Penetration Max . | . . . . Secondary Targets 5 | . 3 2 . Max Gunslinging Chain 1 | . 1 1 . Shots Hit Robots 110 | . 25 61 24 Core Hits 45 | . 14 17 14 Critical Hits . | . . . . Critical Kills . | . . . . Critical Parts Destroyed . | . . . . Melee Attacks . | . . . . Impact . | . . . . Slashing . | . . . . Piercing . | . . . . Sneak Attacks . | . . . . Combat Hostiles . | . . . . Follow-up Attacks . | . . . . Damage Inflicted 1978 | . 300 756 922 Guns 1241 | . 300 756 185 Cannons 382 | . . . 382 Explosions 355 | . . . 355 Melee . | . . . . Ramming . | . . . . Kinetic 492 | . 139 353 . Thermal 1104 | . 161 403 540 Explosive . | . . . . Electromagnetic 382 | . . . 382 Impact . | . . . . Slashing . | . . . . Piercing . | . . . . Highest Corruption . | . . . . Average Corruption . | . . . . Corruption Purged . | . . . . Overload Shots . | . . . . Overflow Damage 22 | . . . 22 Projectiles 20 | . . . 20 Explosions 2 | . . . 2 Melee . | . . . . Knockbacks . | . . . . Impact . | . . . . Kinetic . | . . . . Secondary . | . . . . Self-Inflicted Damage 95 | . . . 95 Shots 2 | . . . 2 Rammed . | . . . . Targets Rammed . | . . . . Kicked . | . . . . Crushed . | . . . . Highest Temperature 63 | . 18 63 1 Average Temperature 20 | . 12 24 1 Received Heat Transfer 807 | . 30 210 567 Siege Activations . | . . . . Robots Corrupted . | . . . . Combat Hostiles . | . . . . Parts Fried 1 | . . . 1 Impact Corruptions . | . . . . Robots Melted 1 | . . . 1 Combat Hostiles 1 | . . . 1 Parts Melted 7 | . . 4 3 Heat Transferred 2369 | . 375 1137 857 Parts Sabotaged . | . . . . Parts Stolen . | . . . . Parts Stripped . | . . . . Power Chain Reactions 3 | . . . 3 Missiles Intercepted . | . . . . Alert | -11 -10 -9 -8 ------- Run | Scr Mat Mat Mat Peak Influence 321 | . 254 321 275 Average Influence 119 | . 90 145 133 Maximum Alert Level 1 | . 1 1 1 Low Security (%) 75 | 100 85 71 67 Level 1 24 | . 14 28 32 Level 2 . | . . . . Level 3 . | . . . . Level 4 . | . . . . Level 5 . | . . . . High Security . | . . . . Max Security . | . . . . Squads Dispatched 5 | . 1 1 3 Investigation 1 | . . . 1 Extermination . | . . . . Reinforcement 4 | . 1 1 2 Assault . | . . . . Garrison . | . . . . Intercept . | . . . . Construction Impeded 1 | . . . 1 Haulers Reinforced . | . . . . Stealth | -11 -10 -9 -8 --------- Run | Scr Mat Mat Mat Distress Signals 3 | . . 2 1 Communications Jammed . | . . . . Distress Signals . | . . . . Times Spotted 68 | . 21 25 22 Peak Tracking Total 10 | . 5 5 10 Tactical Retreats 9 | . 2 4 3 Traps | -11 -10 -9 -8 ------- Run | Scr Mat Mat Mat Traps Triggered . | . . . . Indirectly . | . . . . Trap Hack Attempts . | . . . . Triggered . | . . . . Disarmed . | . . . . Reprogrammed . | . . . . Reused . | . . . . Traps Extracted . | . . . . Installed . | . . . . Triggered . | . . . . Machines | -11 -10 -9 -8 ---------- Run | Scr Mat Mat Mat Machines Disabled 1 | . . . 1 Max in Single Turn 1 | . . . 1 Machines Sabotaged . | . . . . Garrisons Compromised . | . . . . Overloaded Fab Kills . | . . . . Fab Network Shutdowns . | . . . . Hacking | -11 -10 -9 -8 --------- Run | Scr Mat Mat Mat Machines Accessed 10 | . 2 3 5 Terminals 9 | . 2 3 4 Fabricators . | . . . . Repair Stations . | . . . . Recycling Units . | . . . . Scanalyzers 1 | . . . 1 Garrison Access . | . . . . Total Hacks 31 | . 6 8 17 Successful 22 | . 5 7 10 Failed 9 | . 1 1 7 Catastrophic 2 | . . . 2 Database Lockouts . | . . . . Manual 28 | . 5 8 15 Terminals 30 | . 6 8 16 Fabricators . | . . . . Repair Stations . | . . . . Recycling Units . | . . . . Scanalyzers 1 | . . . 1 Garrison Access . | . . . . Terminal Hacks 9 | . 2 2 5 Prototype ID Bank 1 | . . . 1 Terminal Index 1 | . 1 . . Alert Level 1 | . . . 1 Unreport Threat 6 | . 1 2 3 Fabricator Hacks . | . . . . Repair Station Hacks . | . . . . Recycling Unit Hacks . | . . . . Scanalyzer . | . . . . Garrison Access Hacks . | . . . . Unauthorized Hacks 13 | . 3 5 5 Terminals 12 | . 3 5 4 Track 3 | . 1 2 . Botnet 8 | . 2 3 3 Disrupt 1 | . . . 1 Fabricators . | . . . . Repair Stations . | . . . . Recycling Units . | . . . . Scanalyzers 1 | . . . 1 Extract 1 | . . . 1 Garrison Access . | . . . . Data Cores Recovered . | . . . . Used . | . . . . Hacking Detections 9 | . 2 3 4 Full Trace Events . | . . . . Feedback Events . | . . . . Feedback Blocked . | . . . . Robot Schematics Acquired . | . . . . Robots Built . | . . . . Matter . | . . . . Time . | . . . . Total Robot Build Rating . | . . . . Part Schematics Acquired 1 | . . . 1 Parts Built . | . . . . Matter . | . . . . Time . | . . . . Total Part Build Rating . | . . . . Parts Repaired . | . . . . Time . | . . . . Parts Recycled . | . . . . Recycled Matter . | . . . . Retrieved Matter . | . . . . Retrieved Components . | . . . . Parts Scanalyzed . | . . . . Part Schematics Acquired . | . . . . Parts Damaged . | . . . . Bothacking | -11 -10 -9 -8 ------------ Run | Scr Mat Mat Mat Used RIF Installer . | . . . . Robots Hacked . | . . . . Non-combat . | . . . . Combat . | . . . . Robot Hacks Applied . | . . . . Relay Couplers Released . | . . . . Robots Rewired . | . . . . Allies Hacked . | . . . . Hacks Repelled . | . . . . Allies | -11 -10 -9 -8 -------- Run | Scr Mat Mat Mat Total Allies . | . . . . Largest Group . | . . . . Highest-Rated Group . | . . . . Highest-Rated Ally . | . . . . Total Orders . | . . . . Ally Attacks . | . . . . Total Damage . | . . . . Kills . | . . . . Allies Corrupted . | . . . . Allies Melted . | . . . . Intel | -11 -10 -9 -8 ------- Run | Scr Mat Mat Mat Robot Analysis Total . | . . . . Derelict Logs Recovered . | . . . . Drone Launches . | . . . . Drone Recoveries . | . . . . Exploration | -11 -10 -9 -8 ------------- Run | Scr Mat Mat Mat Turns Passed 1179 | 43 341 373 422 Spaces Moved 983 | 34 197 343 409 Core 3 | 3 . . . Treads . | . . . . Legs . | . . . . Wheels 211 | 31 180 . . Hover . | . . . . Flight 769 | . 17 343 409 Fastest Speed 37 | 50 100 37 37 Average Speed 64 | 95 101 37 67 Slowest Speed 117 | 100 117 117 117 Overloaded Moves . | . . . . Propulsion Burnouts . | . . . . Robots Hopped 2 | . . 2 . Cave-ins Triggered . | . . . . Exploration Rate (%) 29 | 4 37 34 41 Regions Visited 3 Branch Regions . Pre-discovered Areas . | . . . . Known Exits Taken 1 | . . 1 . Unknown Exits Taken 2 | 1 1 . . Scrap Searched . | . . . . Spaces Dug . | . . . . Terrain Destroyed 9 | . . . 9 Melee . | . . . . Projectile . | . . . . AOE 9 | . . . 9 Actions | -11 -10 -9 -8 --------- Run | Scr Mat Mat Mat Total 1368 | 44 289 504 531 Wait 217 | . 46 92 79 Move 976 | 33 196 338 409 Hop 2 | . . 2 . Pick Up 15 | 7 3 2 3 Fast Attach 10 | . 2 4 4 Attach 7 | 4 3 . . Detach . | . . . . Swap 8 | . . 3 5 Drop 20 | . 2 7 11 Fire 80 | . 25 41 14 Melee . | . . . . Ram . | . . . . Kick . | . . . . Crush . | . . . . Escape Stasis . | . . . . Rewire . | . . . . Trap . | . . . . Miscellaneous 33 | . 12 15 6 Route ------- -11/Scrapyard -10/Materials (discovered 2 exits: *Mat / [*Min]) -9/Materials (discovered 2 exits: *Mat / [*Min]) -8/Materials History --------- Turn | Location | Event 1 | -11/Scrapyard | Upgraded with Propulsion slot (x1) 1 | -11/Scrapyard | Upgraded with Utility slot (x1) 1 | -11/Scrapyard | Upgraded with Weapon slot (x1) 17 | -11/Scrapyard | Discovered new exit (range 15) 44 | -11/Scrapyard | Entered Materials 223 | -10/Materials | Discovered new exit (range 12) 282 | -10/Materials | Destroyed 8 combat bots 316 | -10/Materials | Build established: Mutant 375 | -10/Materials | Discovered new exit (range 8) 385 | -10/Materials | Entered another Materials area 387 | -9/Materials | Reached level 2 387 | -9/Materials | Upgraded with Utility slot (x1) 483 | -9/Materials | Discovered new exit (range 6) 511 | -9/Materials | Reached level 3 514 | -9/Materials | Core integrity fell below 50% 751 | -9/Materials | Discovered new exit (range 10) 757 | -9/Materials | Identified exit to Materials 758 | -9/Materials | Entered another Materials area 760 | -8/Materials | Reached level 4 797 | -8/Materials | Reached level 5 1161 | -8/Materials | Core integrity fell below 50% 1169 | -8/Materials | Core integrity fell below 20% 1180 | -8/Materials | Destroyed by Y-45 Defender with Beam Rifle Last Messages --------------- Trojan loaded successfully. Testing... Terminal linked with 2 systems. Awaiting botnet instructions. >>Trojan(Disrupt) Trojan loaded successfully. Testing... Disruption routine running. 01096_ K-01 Serf cleans the Nuclear Reactor. 01137_ O-16 Technician: "IFF HANDSHAKE FAILED. SECURING TERMINAL." 01138_ ALERT: Hostiles spotted, dispatching reinforcements to Terminal M012. 01140_ W-25 Informer sends out distress signal. 01154_ Material Processor disabled. 01157_ Chain reaction triggered in Lgt. Nuclear Core. 01158_ G-47 Trooper misfires. 01163_ U-05 Engineer lays Concrete. 01172_ U-05 Engineer builds a Wall. 01175_ G-47 Trooper IFF system glitched. 01176_ U-05 Engineer builds a Door. Map ----- +----------------------------------------------------+ | ??????????????????????????????######### | | ??????????????????????????????? ?# | | ??????????????????????????????? [ ?# | | ???????????????????????????????? ??# | | ?????????????????????????????? ? ???# | | ?????????????????????????????#+##/##### | | ?????????????????????????????# | | ?????????????????????????????# #### | | ????????????????????????????## #??# | | ????????????????????????????# #??# | | ???????????????????????????## #??# | | ???????????????????????????+ #??#/##+ | | ???????????????????????????## #?? ?? | | ????????????????????????????# #? "?? | | ????????????????????????????# #? "?? | | ????????????????????????????# ## "?? | | ????????????????????????????# ## ?? | | ????????????????????????????# ## ?? | | ????????????????????????????# ## ?? | | ????????????????????????????# ## ?? | | ????????????????????????????# ## ?? | | ????????????????????????????# ######+# | | ???????# #################### g #### | | ???????# w Y | | ???????+ gg T | | ???????# @ g | | ???????### #######+############""""#] | | ????????????????? ?????# #?### | | ?????????????????"""?????# #???? | | ???????????????? """ ????# "" #???? | | ???????????????? """ ????# """""#???? | | ???????????????+ ???# """""#???? | | ???????????????# [ ???# """""#???? | | ???????????????########??# """ #???? | | ?????????????????????????# ????? | | ?????????????????????????########??????? | | ???????????????????????????????????????? | | ???????????????????????????????????????? | | | | | | | | | | | | | | | | | | | | | | | | | +----------------------------------------------------+ Best States ------------- Heat Dissipation 67 Energy Generation 17 Energy Capacity 315 Matter Stores 350 Matter Capacity 350 Sight Range 17 Robot Scan Range 13 Terrain Scan Range 16 Terrain Scan Density 10 ECM Strength 1 Resistance: KI 10 Resistance: TH 5 Resistance: EX 5 Evasion (%) 62 Targeting Accuracy 5 Item Schematics ----------------- Adv. Terrain Scanner | -8/Materials | Extracted Robot Schematics ------------------ None Fabricated ------------ Nothing Alien Tech Used ----------------- None Achievements -------------- None Challenges ------------ None RPGLIKE | -11 -10 -9 -8 --------- Run | Scr Mat Mat Mat Levels Raised 4 | . . 2 2 XP Earned 9570 | 3000 1250 3005 2315 XP Spent 8950 | 3000 . 2800 3150 Upgrades 35 | 6 . 13 16 Propulsion Slot 1 | 1 . . . Utility Slot 2 | 1 . 1 . Weapon Slot 1 | 1 . . . Core Integrity 8 | . . . 8 Heat Dissipation 7 | . . 5 2 Energy Generation 1 | . . . 1 Energy Storage 1 | . . . 1 Matter Storage 1 | . . . 1 Mass Support 1 | . . 1 . Inventory Capacity 3 | 3 . . . Sight Range 1 | . . 1 . Ranged Accuracy 4 | . . 2 2 KI Resistance % 2 | . . 1 1 TH Resistance % 1 | . . 1 . EX Resistance % 1 | . . 1 . Protomatter Created 238 | . 81 113 44 Integrity Restored 714 | . 243 339 132 Core 714 | . 243 339 132 Protomatter Decayed . | . . . . Game ------ Seed PrecisionStorageActivator Manual? 0 Play Time 00:23:17 Cumulative 61.2 hours Start 2020.07.30 @ 11:08:12 End 2020.07.30 @ 11:29:25 Sessions 1 Manual Loads 0 Difficulty Rogue Special Mode Winter2019/RPGLIKE Game No. 90 Rogue 90 Adventurer 0 Explorer 0 Win Type - Total 0 Types 0/0/0/0/0/0/0 Lore% 34 Gallery% 43 Achievement% 35 Wizard Run 0 Options --------- ASCII 0 Keyboard 0 Movement Mouse Keybinds 0 Fullscreen 2 Font 18/X11 Map View 76x50 Tactical HUD 1 Map Filters NONE Filters NONE Steam 1 RUN: d9d30fca-02a3-4b6c-b9a7-30b565c152ee